[Event "*** Titled Tuesday Blitz"]
[Site "Chess.com"]
[Date "2020.10.20"]
[Round "1"]
[White "Mr_Sinigami"]
[Black "Yoshikrov"]
[Result "1-0"]
[WhiteElo "2503"]
[BlackElo "2118"]
[TimeControl "180+1"]
[EndTime "10:06:29 PDT"]
[Termination "Mr_Sinigami won by resignation"]

1. d4 {[%clk 0:03:00.9]} 1... Nf6 {[%clk 0:02:59.8]} 2. Nf3 {[%clk 0:03:01.3]}
2... d5 {[%clk 0:02:59.8]} 3. Bf4 {[%clk 0:03:01.7]} 3... c5 {[%clk 0:02:59.6]}
4. e3 {[%clk 0:03:02]} 4... Nc6 {[%clk 0:03:00]} 5. c3 {[%clk 0:03:01.9]} 5...
Qb6 {[%clk 0:02:59.6]} 6. Qb3 {[%clk 0:02:59.4]} 6... c4 {[%clk 0:02:58.9]} 7.
Qc2 {[%clk 0:02:59.3]} 7... Bf5 {[%clk 0:02:58.6]} 8. Qc1 {[%clk 0:02:59.3]}
8... Qd8 {[%clk 0:02:46.3]} 9. Nbd2 {[%clk 0:02:58]} 9... b5 {[%clk 0:02:45.6]}
10. Nh4 {[%clk 0:02:55.9]} 10... Bd7 {[%clk 0:02:36.8]} 11. Be2 {[%clk
0:02:52.3]} 11... h6 {[%clk 0:02:36.4]} 12. Nhf3 {[%clk 0:02:50.5]} 12... Bf5
{[%clk 0:02:35.5]} 13. h3 {[%clk 0:02:48.3]} 13... e5 {[%clk 0:02:34.9]} 14.
Nxe5 {[%clk 0:02:42.5]} 14... Nxe5 {[%clk 0:02:34.8]} 15. Bxe5 {[%clk
0:02:42.4]} 15... Be7 {[%clk 0:02:34.7]} 16. O-O {[%clk 0:02:37.1]} 16... O-O
{[%clk 0:02:34.5]} 17. Bd1 {[%clk 0:02:37.1]} 17... a5 {[%clk 0:02:34.3]} 18.
Bc2 {[%clk 0:02:36.9]} 18... Bxc2 {[%clk 0:02:34]} 19. Qxc2 {[%clk 0:02:37.1]}
19... Nd7 {[%clk 0:02:33.9]} 20. Bg3 {[%clk 0:02:30.6]} 20... Qb6 {[%clk
0:02:29.6]} 21. e4 {[%clk 0:02:28.5]} 21... dxe4 {[%clk 0:02:19.3]} 22. Qxe4
{[%clk 0:02:27]} 22... Rfe8 {[%clk 0:02:16.1]} 23. Rfe1 {[%clk 0:02:24.4]} 23...
Nf6 {[%clk 0:02:15.2]} 24. Qf3 {[%clk 0:02:20.2]} 24... Rac8 {[%clk 0:02:10.5]}
25. Be5 {[%clk 0:02:12.2]} 25... b4 {[%clk 0:02:08.7]} 26. Bxf6 {[%clk 0:02:04]}
26... Bxf6 {[%clk 0:02:07.7]} 27. Nxc4 {[%clk 0:02:01.9]} 27... Rxe1+ {[%clk
0:02:05.5]} 28. Rxe1 {[%clk 0:02:01]} 28... Rxc4 {[%clk 0:02:05.2]} 29. Re8+
{[%clk 0:01:59.8]} 29... Kh7 {[%clk 0:02:05.3]} 30. Qd3+ {[%clk 0:01:59.4]}
30... g6 {[%clk 0:02:03.1]} 31. Qxc4 {[%clk 0:01:59.3]} 31... Kg7 {[%clk
0:02:02.3]} 32. Re1 {[%clk 0:01:49.3]} 32... bxc3 {[%clk 0:02:01.7]} 33. bxc3
{[%clk 0:01:48.6]} 33... h5 {[%clk 0:01:45.8]} 34. a4 {[%clk 0:01:46.3]} 34...
Qb2 {[%clk 0:01:36.1]} 35. g3 {[%clk 0:01:19.4]} 35... Qd2 {[%clk 0:01:30.6]}
36. Re8 {[%clk 0:01:12.9]} 36... h4 {[%clk 0:01:23.5]} 37. g4 {[%clk 0:01:12.3]}
37... Qf4 {[%clk 0:01:12.8]} 38. Kg2 {[%clk 0:01:08]} 38... Qc1 {[%clk
0:01:02.6]} 39. Rc8 {[%clk 0:01:05.5]} 39... Qc2 {[%clk 0:00:54.1]} 40. Qd5
{[%clk 0:01:03.7]} 40... Qxa4 {[%clk 0:00:38.8]} 41. g5 {[%clk 0:01:01.8]} 1-0

[Event "*** Titled Tuesday Blitz"]
[Site "Chess.com"]
[Date "2020.10.20"]
[Round "1"]
[White "CrazyMartian"]
[Black "sjam6687"]
[Result "1/2-1/2"]
[WhiteElo "2314"]
[BlackElo "2636"]
[TimeControl "180+1"]
[EndTime "10:06:30 PDT"]
[Termination "Game drawn by repetition"]

1. d4 {[%clk 0:03:00.9]} 1... d5 {[%clk 0:02:59.7]} 2. Bf4 {[%clk 0:03:00.2]}
2... Nf6 {[%clk 0:02:59.5]} 3. e3 {[%clk 0:03:00.4]} 3... c5 {[%clk 0:02:57.9]}
4. c3 {[%clk 0:03:00.6]} 4... Nc6 {[%clk 0:02:55.4]} 5. Nd2 {[%clk 0:03:00.8]}
5... Bf5 {[%clk 0:02:53.5]} 6. Ngf3 {[%clk 0:03:00.6]} 6... e6 {[%clk
0:02:53.2]} 7. Be2 {[%clk 0:02:57.1]} 7... Qb6 {[%clk 0:02:50.8]} 8. Qb3 {[%clk
0:02:42.9]} 8... c4 {[%clk 0:02:45.9]} 9. Qxb6 {[%clk 0:02:42.8]} 9... axb6
{[%clk 0:02:46.3]} 10. a3 {[%clk 0:02:38.2]} 10... Be7 {[%clk 0:02:43.2]} 11.
Nh4 {[%clk 0:02:37.2]} 11... Bg6 {[%clk 0:02:40.8]} 12. Nxg6 {[%clk 0:02:37.2]}
12... hxg6 {[%clk 0:02:40.8]} 13. h3 {[%clk 0:02:37.3]} 13... b5 {[%clk
0:02:38.9]} 14. O-O {[%clk 0:02:35.7]} 14... Nh5 {[%clk 0:02:37.8]} 15. Bh2
{[%clk 0:02:35.3]} 15... f5 {[%clk 0:02:34.4]} 16. f3 {[%clk 0:02:28.1]} 16...
Bg5 {[%clk 0:02:31.7]} 17. f4 {[%clk 0:02:28.2]} 17... Be7 {[%clk 0:02:31.2]}
18. g4 {[%clk 0:02:24.8]} 18... Nf6 {[%clk 0:02:31.2]} 19. Kg2 {[%clk
0:02:23.5]} 19... Ne4 {[%clk 0:02:30.9]} 20. Nxe4 {[%clk 0:02:23.1]} 20... fxe4
{[%clk 0:02:30.9]} 21. f5 {[%clk 0:02:13.5]} 21... Kf7 {[%clk 0:02:25.2]} 22.
fxe6+ {[%clk 0:01:55.2]} 22... Kxe6 {[%clk 0:02:25]} 23. Rae1 {[%clk 0:01:40.3]}
23... g5 {[%clk 0:02:22.1]} 24. Rf5 {[%clk 0:01:27.7]} 24... Bf6 {[%clk
0:02:16.8]} 25. Ref1 {[%clk 0:01:26.6]} 25... Ne7 {[%clk 0:02:16.4]} 26. R5f2
{[%clk 0:01:22]} 26... Ng6 {[%clk 0:02:11.9]} 27. Bg3 {[%clk 0:01:22.1]} 27...
Nh4+ {[%clk 0:01:26.3]} 28. Bxh4 {[%clk 0:01:08.9]} 28... Rxh4 {[%clk
0:00:30.1]} 29. Rh1 {[%clk 0:00:59.5]} 29... Rh7 {[%clk 0:00:27.6]} 30. Rff1
{[%clk 0:00:57]} 30... Rah8 {[%clk 0:00:27.6]} 31. Bd1 {[%clk 0:00:54]} 31...
Be7 {[%clk 0:00:28.3]} 32. Be2 {[%clk 0:00:52]} 32... Rc8 {[%clk 0:00:28.7]} 33.
Rf5 {[%clk 0:00:47.6]} 33... Rch8 {[%clk 0:00:28.9]} 34. Rff1 {[%clk 0:00:47.2]}
34... Rb8 {[%clk 0:00:28.1]} 35. Rf5 {[%clk 0:00:46.2]} 35... Rbh8 {[%clk
0:00:28.1]} 36. Rff1 {[%clk 0:00:46.1]} 1/2-1/2

[Event "*** Titled Tuesday Blitz"]
[Site "Chess.com"]
[Date "2020.10.20"]
[Round "1"]
[White "Triumphmate"]
[Black "Sanan_Sjugirov"]
[Result "0-1"]
[WhiteElo "2442"]
[BlackElo "2903"]
[TimeControl "180+1"]
[EndTime "10:06:31 PDT"]
[Termination "Sanan_Sjugirov won by resignation"]

1. e4 {[%clk 0:03:00.8]} 1... c5 {[%clk 0:02:59.3]} 2. Nf3 {[%clk 0:03:00.5]}
2... d6 {[%clk 0:02:59.2]} 3. d4 {[%clk 0:03:00.8]} 3... cxd4 {[%clk 0:03:00.1]}
4. Nxd4 {[%clk 0:03:01.7]} 4... Nf6 {[%clk 0:03:00.2]} 5. Nc3 {[%clk 0:03:02.1]}
5... a6 {[%clk 0:03:00.2]} 6. f4 {[%clk 0:03:02.5]} 6... Qc7 {[%clk 0:02:58.5]}
7. Nf3 {[%clk 0:03:02.7]} 7... g6 {[%clk 0:02:56.2]} 8. Bd3 {[%clk 0:03:03]}
8... Bg7 {[%clk 0:02:55.6]} 9. O-O {[%clk 0:03:00.6]} 9... O-O {[%clk
0:02:52.8]} 10. Kh1 {[%clk 0:02:56.2]} 10... Nbd7 {[%clk 0:02:50.2]} 11. Qe1
{[%clk 0:02:55.4]} 11... b5 {[%clk 0:02:47]} 12. a3 {[%clk 0:02:55.5]} 12... Bb7
{[%clk 0:02:46.6]} 13. Bd2 {[%clk 0:02:54.1]} 13... Qc5 {[%clk 0:02:25.1]} 14.
Qg3 {[%clk 0:02:46.2]} 14... Rac8 {[%clk 0:02:20.2]} 15. Rae1 {[%clk 0:02:45.4]}
15... e6 {[%clk 0:02:14.5]} 16. e5 {[%clk 0:02:36.5]} 16... dxe5 {[%clk
0:02:13.7]} 17. fxe5 {[%clk 0:02:37.4]} 17... Nh5 {[%clk 0:02:12.6]} 18. Qg5
{[%clk 0:02:05]} 18... Bxf3 {[%clk 0:02:11.7]} 19. Rxf3 {[%clk 0:02:03.4]} 19...
Nxe5 {[%clk 0:02:11.3]} 20. Rh3 {[%clk 0:01:44.9]} 20... Nxd3 {[%clk 0:01:59.6]}
21. cxd3 {[%clk 0:01:28.6]} 21... Qxg5 {[%clk 0:01:57.5]} 22. Bxg5 {[%clk
0:01:29.5]} 22... Nf6 {[%clk 0:01:56.9]} 23. Rf3 {[%clk 0:01:22.8]} 23... Nd7
{[%clk 0:01:45.8]} 24. Ne4 {[%clk 0:01:21.3]} 24... Bxb2 {[%clk 0:01:42.3]} 25.
Ref1 {[%clk 0:01:09.1]} 25... f5 {[%clk 0:01:33.4]} 26. Nd2 {[%clk 0:01:05.7]}
26... Bxa3 {[%clk 0:01:29.8]} 27. h4 {[%clk 0:01:03.8]} 27... Rfe8 {[%clk
0:01:15.2]} 28. d4 {[%clk 0:00:51.7]} 28... Bd6 {[%clk 0:01:13.2]} 29. h5 {[%clk
0:00:49.8]} 29... e5 {[%clk 0:01:10.9]} 30. hxg6 {[%clk 0:00:46.9]} 30... hxg6
{[%clk 0:01:11.8]} 31. dxe5 {[%clk 0:00:46.6]} 31... Nxe5 {[%clk 0:01:12.7]} 32.
Rh3 {[%clk 0:00:45.5]} 32... Ng4 {[%clk 0:01:10.7]} 33. Nf3 {[%clk 0:00:39.3]}
33... Rc2 {[%clk 0:01:09.8]} 34. Bh4 {[%clk 0:00:36.6]} 34... Bc5 {[%clk
0:01:02.3]} 35. Bg3 {[%clk 0:00:27]} 35... b4 {[%clk 0:00:59.4]} 36. Rb1 {[%clk
0:00:24.6]} 36... b3 {[%clk 0:00:59.1]} 0-1

[Event "*** Titled Tuesday Blitz"]
[Site "Chess.com"]
[Date "2020.10.20"]
[Round "1"]
[White "dretch"]
[Black "margarita_2703"]
[Result "1-0"]
[WhiteElo "2816"]
[BlackElo "2406"]
[TimeControl "180+1"]
[EndTime "10:06:31 PDT"]
[Termination "dretch won by resignation"]

1. d4 {[%clk 0:02:56.5]} 1... d5 {[%clk 0:02:49.3]} 2. c4 {[%clk 0:02:56.4]}
2... c6 {[%clk 0:02:41.6]} 3. Nc3 {[%clk 0:02:53.3]} 3... Nf6 {[%clk 0:02:40.1]}
4. e3 {[%clk 0:02:52]} 4... e6 {[%clk 0:02:39.1]} 5. Bd3 {[%clk 0:02:50.2]} 5...
Nbd7 {[%clk 0:02:38.9]} 6. e4 {[%clk 0:02:39.1]} 6... dxe4 {[%clk 0:02:37.2]} 7.
Nxe4 {[%clk 0:02:38.8]} 7... Nxe4 {[%clk 0:02:31.9]} 8. Bxe4 {[%clk 0:02:38.8]}
8... Nf6 {[%clk 0:02:30.6]} 9. Bc2 {[%clk 0:02:38.5]} 9... Bb4+ {[%clk
0:02:28.7]} 10. Bd2 {[%clk 0:02:38.4]} 10... Bxd2+ {[%clk 0:02:28.5]} 11. Qxd2
{[%clk 0:02:38.3]} 11... O-O {[%clk 0:02:28.3]} 12. Nf3 {[%clk 0:02:38.4]} 12...
b6 {[%clk 0:02:17.7]} 13. O-O {[%clk 0:02:30.1]} 13... Bb7 {[%clk 0:02:14.7]}
14. c5 {[%clk 0:02:24.5]} 14... Nd5 {[%clk 0:02:10.1]} 15. Ng5 {[%clk
0:02:21.1]} 15... h6 {[%clk 0:02:06.4]} 16. Ne4 {[%clk 0:02:21]} 16... Ba6
{[%clk 0:02:05.3]} 17. Rfe1 {[%clk 0:02:20.5]} 17... Rb8 {[%clk 0:02:00.8]} 18.
Rac1 {[%clk 0:02:08.1]} 18... Kh8 {[%clk 0:01:22.9]} 19. Bb3 {[%clk 0:02:05]}
19... Qd7 {[%clk 0:01:17.3]} 20. Nd6 {[%clk 0:02:01.3]} 20... bxc5 {[%clk
0:01:01.1]} 21. dxc5 {[%clk 0:01:59.8]} 21... Nb4 {[%clk 0:00:58.9]} 22. Rc3
{[%clk 0:01:55.2]} 22... Qe7 {[%clk 0:00:40.1]} 23. Rf3 {[%clk 0:01:47.4]} 23...
Nd5 {[%clk 0:00:25.3]} 24. Re4 {[%clk 0:01:36.1]} 24... f5 {[%clk 0:00:19.7]}
25. Rxf5 {[%clk 0:01:19.3]} 25... Rxf5 {[%clk 0:00:18]} 26. Nxf5 {[%clk
0:01:19.1]} 26... Qxc5 {[%clk 0:00:18]} 27. Rxe6 {[%clk 0:01:05.2]} 27... Bc4
{[%clk 0:00:17.2]} 28. Rxh6+ {[%clk 0:01:02.1]} 28... Kg8 {[%clk 0:00:15.1]} 29.
Qg5 {[%clk 0:00:49.7]} 29... Rb7 {[%clk 0:00:14.8]} 30. Qd8+ {[%clk 0:00:42.6]}
30... Kf7 {[%clk 0:00:14.7]} 31. Nd6+ {[%clk 0:00:40.6]} 31... Qxd6 {[%clk
0:00:14.7]} 32. Rxd6 {[%clk 0:00:40.5]} 32... Bxb3 {[%clk 0:00:14.8]} 33. Rd7+
{[%clk 0:00:39.9]} 33... Rxd7 {[%clk 0:00:14.2]} 34. Qxd7+ {[%clk 0:00:40.3]}
1-0

[Event "*** Titled Tuesday Blitz"]
[Site "Chess.com"]
[Date "2020.10.20"]
[Round "1"]
[White "Me_ch_an"]
[Black "Blitzstream"]
[Result "0-1"]
[WhiteElo "2324"]
[BlackElo "2665"]
[TimeControl "180+1"]
[EndTime "10:06:32 PDT"]
[Termination "Blitzstream won on time"]

1. e4 {[%clk 0:03:00.9]} 1... d5 {[%clk 0:02:55.1]} 2. exd5 {[%clk 0:03:00.3]}
2... Qxd5 {[%clk 0:02:56]} 3. Nc3 {[%clk 0:02:59.5]} 3... Qa5 {[%clk 0:02:48.5]}
4. d4 {[%clk 0:02:59.1]} 4... Nf6 {[%clk 0:02:48]} 5. Nf3 {[%clk 0:02:58.7]}
5... c6 {[%clk 0:02:46.1]} 6. Bc4 {[%clk 0:02:58]} 6... Bf5 {[%clk 0:02:46]} 7.
Bd2 {[%clk 0:02:57.6]} 7... e6 {[%clk 0:02:46.1]} 8. Qe2 {[%clk 0:02:56.7]} 8...
Bb4 {[%clk 0:02:38.4]} 9. a3 {[%clk 0:02:55.7]} 9... Nbd7 {[%clk 0:02:32]} 10.
O-O-O {[%clk 0:02:50.4]} 10... b5 {[%clk 0:02:29.8]} 11. axb4 {[%clk 0:02:42]}
11... Qa1+ {[%clk 0:02:27.3]} 12. Nb1 {[%clk 0:02:41.6]} 12... bxc4 {[%clk
0:02:27.3]} 13. Qxc4 {[%clk 0:02:39.6]} 13... O-O {[%clk 0:02:21.7]} 14. Qb3
{[%clk 0:02:12.7]} 14... Ne4 {[%clk 0:02:15.6]} 15. Be3 {[%clk 0:02:02.4]} 15...
Qa6 {[%clk 0:02:10.4]} 16. Nh4 {[%clk 0:01:51.2]} 16... Ndf6 {[%clk 0:02:02]}
17. h3 {[%clk 0:01:25.9]} 17... Rab8 {[%clk 0:01:57.7]} 18. g4 {[%clk
0:01:13.1]} 18... Bg6 {[%clk 0:01:55.9]} 19. Rhg1 {[%clk 0:00:41.6]} 19... Nd5
{[%clk 0:01:50.3]} 20. c3 {[%clk 0:00:24.1]} 20... Qa1 {[%clk 0:01:06.7]} 21.
Qa3 {[%clk 0:00:19.6]} 21... Qxa3 {[%clk 0:00:59.5]} 22. Nxa3 {[%clk 0:00:20.5]}
22... Nd6 {[%clk 0:00:50.8]} 23. Nxg6 {[%clk 0:00:16.8]} 23... fxg6 {[%clk
0:00:49.8]} 24. Rde1 {[%clk 0:00:16.6]} 24... Rf3 {[%clk 0:00:49.6]} 25. Rg3
{[%clk 0:00:15.2]} 25... Rbf8 {[%clk 0:00:48.3]} 26. Rxf3 {[%clk 0:00:14.4]}
26... Rxf3 {[%clk 0:00:49.2]} 27. h4 {[%clk 0:00:13.3]} 27... Rh3 {[%clk
0:00:48.9]} 28. Bg5 {[%clk 0:00:11.6]} 28... Kf7 {[%clk 0:00:49.2]} 29. Nc2
{[%clk 0:00:04.9]} 29... h6 {[%clk 0:00:49.5]} 30. Be3 {[%clk 0:00:04.5]} 30...
Rxh4 {[%clk 0:00:49.7]} 31. c4 {[%clk 0:00:02.8]} 31... Nxc4 {[%clk 0:00:48.8]}
0-1

[Event "*** Titled Tuesday Blitz"]
[Site "Chess.com"]
[Date "2020.10.20"]
[Round "1"]
[White "Chessmatus"]
[Black "1977Ivan"]
[Result "0-1"]
[WhiteElo "2339"]
[BlackElo "2684"]
[TimeControl "180+1"]
[EndTime "10:06:33 PDT"]
[Termination "1977Ivan won by resignation"]

1. e4 {[%clk 0:02:59.3]} 1... c5 {[%clk 0:02:59.9]} 2. Nf3 {[%clk 0:02:56.9]}
2... Nc6 {[%clk 0:03:00.1]} 3. Bb5 {[%clk 0:02:56.7]} 3... g6 {[%clk 0:02:56.7]}
4. Bxc6 {[%clk 0:02:56.5]} 4... bxc6 {[%clk 0:02:53.3]} 5. O-O {[%clk
0:02:55.8]} 5... Bg7 {[%clk 0:02:53.7]} 6. Re1 {[%clk 0:02:56.2]} 6... Nh6
{[%clk 0:02:45.8]} 7. c3 {[%clk 0:02:51.8]} 7... O-O {[%clk 0:02:45.7]} 8. h3
{[%clk 0:02:51.9]} 8... f6 {[%clk 0:02:29.8]} 9. d4 {[%clk 0:02:43.7]} 9... cxd4
{[%clk 0:02:30.7]} 10. cxd4 {[%clk 0:02:42.8]} 10... d6 {[%clk 0:02:25.2]} 11.
Nc3 {[%clk 0:02:38.6]} 11... Qa5 {[%clk 0:02:20.5]} 12. Be3 {[%clk 0:02:24.8]}
12... Qh5 {[%clk 0:02:15.4]} 13. Ne2 {[%clk 0:01:42.2]} 13... g5 {[%clk
0:02:14.3]} 14. Ng3 {[%clk 0:01:38.3]} 14... Qg6 {[%clk 0:02:13.7]} 15. Qb3+
{[%clk 0:01:23.9]} 15... Kh8 {[%clk 0:02:12.6]} 16. e5 {[%clk 0:01:11.4]} 16...
fxe5 {[%clk 0:02:07]} 17. dxe5 {[%clk 0:01:11.4]} 17... Bxh3 {[%clk 0:01:36.3]}
18. Nxg5 {[%clk 0:01:10.5]} 18... Rab8 {[%clk 0:01:21.2]} 19. Qc4 {[%clk
0:00:46.7]} 19... Bd7 {[%clk 0:01:19.9]} 20. exd6 {[%clk 0:00:45.8]} 20... exd6
{[%clk 0:01:17.8]} 21. Rad1 {[%clk 0:00:38.4]} 21... Ng4 {[%clk 0:01:10.6]} 22.
N5e4 {[%clk 0:00:33.3]} 22... d5 {[%clk 0:01:08.9]} 23. Qc5 {[%clk 0:00:31.3]}
23... Nxe3 {[%clk 0:00:54.7]} 24. Rxe3 {[%clk 0:00:30.9]} 24... Bg4 {[%clk
0:00:53.4]} 25. f3 {[%clk 0:00:15.7]} 25... Bxf3 {[%clk 0:00:53]} 26. gxf3
{[%clk 0:00:12.3]} 26... dxe4 {[%clk 0:00:52.4]} 27. fxe4 {[%clk 0:00:12.5]}
27... Rxb2 {[%clk 0:00:49.1]} 28. Rd7 {[%clk 0:00:09.9]} 28... Qg4 {[%clk
0:00:44.6]} 29. Qd4 {[%clk 0:00:06.9]} 29... Bxd4 {[%clk 0:00:41]} 0-1

[Event "*** Titled Tuesday Blitz"]
[Site "Chess.com"]
[Date "2020.10.20"]
[Round "1"]
[White "SARGISMV"]
[Black "Pertinhez76"]
[Result "1-0"]
[WhiteElo "2510"]
[BlackElo "2142"]
[TimeControl "180+1"]
[EndTime "10:06:33 PDT"]
[Termination "SARGISMV won by resignation"]

1. d4 {[%clk 0:02:57.3]} 1... Nf6 {[%clk 0:02:56.5]} 2. c4 {[%clk 0:02:56.9]}
2... e5 {[%clk 0:02:56.2]} 3. dxe5 {[%clk 0:02:55.3]} 3... Ng4 {[%clk
0:02:56.2]} 4. Nf3 {[%clk 0:02:55]} 4... Bc5 {[%clk 0:02:54.8]} 5. e3 {[%clk
0:02:54.5]} 5... Nc6 {[%clk 0:02:53.3]} 6. Nc3 {[%clk 0:02:50.6]} 6... Ngxe5
{[%clk 0:02:52.5]} 7. Be2 {[%clk 0:02:49.7]} 7... O-O {[%clk 0:02:51.6]} 8. O-O
{[%clk 0:02:46.7]} 8... a5 {[%clk 0:02:51.6]} 9. Na4 {[%clk 0:02:41.4]} 9... Ba7
{[%clk 0:02:39.3]} 10. b3 {[%clk 0:02:39.5]} 10... Re8 {[%clk 0:02:37.4]} 11.
Bb2 {[%clk 0:02:39]} 11... d6 {[%clk 0:02:37.3]} 12. Rc1 {[%clk 0:01:54.2]}
12... Bf5 {[%clk 0:02:25.8]} 13. Nd4 {[%clk 0:01:46.2]} 13... Bg6 {[%clk
0:02:21.9]} 14. h3 {[%clk 0:01:45.7]} 14... Qh4 {[%clk 0:02:02.7]} 15. Nxc6
{[%clk 0:01:43.1]} 15... bxc6 {[%clk 0:01:38.9]} 16. c5 {[%clk 0:01:41.3]} 16...
Rad8 {[%clk 0:00:57.4]} 17. Qd4 {[%clk 0:01:22.4]} 17... Qe7 {[%clk 0:00:39.8]}
18. Qc3 {[%clk 0:01:11.6]} 18... f6 {[%clk 0:00:36.5]} 19. Qxa5 {[%clk
0:01:09.7]} 19... Ra8 {[%clk 0:00:35]} 20. Qc3 {[%clk 0:00:52.5]} 20... Bf7
{[%clk 0:00:34.1]} 21. Rfd1 {[%clk 0:00:50.4]} 21... Rec8 {[%clk 0:00:31.9]} 22.
Qd4 {[%clk 0:00:49.1]} 22... Nd7 {[%clk 0:00:30]} 23. cxd6 {[%clk 0:00:46.6]}
23... Bxd4 {[%clk 0:00:30.1]} 24. dxe7 {[%clk 0:00:45.9]} 24... Bxb2 {[%clk
0:00:30.7]} 25. Nxb2 {[%clk 0:00:45]} 25... Rxa2 {[%clk 0:00:31.3]} 26. Rxd7
{[%clk 0:00:43.8]} 26... Re8 {[%clk 0:00:24.4]} 27. Rd8 {[%clk 0:00:30.9]} 27...
Rxb2 {[%clk 0:00:23.1]} 28. Bc4 {[%clk 0:00:30.9]} 28... Ra2 {[%clk 0:00:12.4]}
1-0

[Event "*** Titled Tuesday Blitz"]
[Site "Chess.com"]
[Date "2020.10.20"]
[Round "1"]
[White "WiktoriaPOL"]
[Black "zajka-molotok"]
[Result "0-1"]
[WhiteElo "2053"]
[BlackElo "2482"]
[TimeControl "180+1"]
[EndTime "10:06:36 PDT"]
[Termination "zajka-molotok won by resignation"]

1. c4 {[%clk 0:03:00.9]} 1... Nf6 {[%clk 0:02:57.9]} 2. Nc3 {[%clk 0:03:00.3]}
2... d6 {[%clk 0:02:57.6]} 3. g3 {[%clk 0:02:54]} 3... c6 {[%clk 0:02:53.9]} 4.
Bg2 {[%clk 0:02:52.5]} 4... e5 {[%clk 0:02:54.1]} 5. e4 {[%clk 0:02:51.5]} 5...
Be7 {[%clk 0:02:53.1]} 6. Nge2 {[%clk 0:02:50]} 6... Na6 {[%clk 0:02:43.4]} 7.
O-O {[%clk 0:02:33.4]} 7... h5 {[%clk 0:02:40.1]} 8. h4 {[%clk 0:02:31.7]} 8...
Nc5 {[%clk 0:02:38.9]} 9. b4 {[%clk 0:02:26.4]} 9... Ne6 {[%clk 0:02:27.9]} 10.
d4 {[%clk 0:02:24.1]} 10... exd4 {[%clk 0:02:26.6]} 11. Nxd4 {[%clk 0:02:22.9]}
11... Nxd4 {[%clk 0:02:26]} 12. Qxd4 {[%clk 0:02:22]} 12... Qb6 {[%clk 0:02:23]}
13. Qxb6 {[%clk 0:02:18.6]} 13... axb6 {[%clk 0:02:23.9]} 14. a3 {[%clk
0:02:11.8]} 14... Be6 {[%clk 0:02:22.9]} 15. c5 {[%clk 0:02:01.2]} 15... dxc5
{[%clk 0:02:21.3]} 16. bxc5 {[%clk 0:02:00.3]} 16... Bxc5 {[%clk 0:02:20.8]} 17.
e5 {[%clk 0:01:56.7]} 17... Ng4 {[%clk 0:02:14.2]} 18. Bf4 {[%clk 0:01:40.1]}
18... O-O {[%clk 0:01:57.3]} 19. a4 {[%clk 0:01:26.3]} 19... Bd4 {[%clk
0:01:56]} 20. Ra3 {[%clk 0:01:19.2]} 20... Bxe5 {[%clk 0:01:55.1]} 21. Bxe5
{[%clk 0:01:18.6]} 21... Nxe5 {[%clk 0:01:56]} 22. f4 {[%clk 0:01:13.4]} 22...
Nc4 {[%clk 0:01:54.7]} 23. Raa1 {[%clk 0:01:11.8]} 23... Bg4 {[%clk 0:01:53.1]}
24. Rf2 {[%clk 0:01:07.1]} 24... Rfe8 {[%clk 0:01:50]} 25. Bf3 {[%clk
0:00:59.1]} 25... Re3 {[%clk 0:01:45.8]} 26. Bxg4 {[%clk 0:00:58.2]} 26... hxg4
{[%clk 0:01:45.6]} 27. Rc2 {[%clk 0:00:51.8]} 27... Rxg3+ {[%clk 0:01:43.5]} 28.
Kh2 {[%clk 0:00:50.4]} 28... Rh3+ {[%clk 0:01:42.9]} 29. Kg1 {[%clk 0:00:49.4]}
29... Rxh4 {[%clk 0:01:37.9]} 30. Ne4 {[%clk 0:00:40.2]} 30... Ne3 {[%clk
0:01:26.3]} 31. Rh2 {[%clk 0:00:29.7]} 31... Rxh2 {[%clk 0:01:25.1]} 32. Kxh2
{[%clk 0:00:28]} 32... Re8 {[%clk 0:01:18.2]} 33. Ng3 {[%clk 0:00:18.7]} 33...
Nd5 {[%clk 0:01:15.8]} 34. f5 {[%clk 0:00:17]} 34... f6 {[%clk 0:01:11.7]} 35.
Kg2 {[%clk 0:00:15]} 35... Re3 {[%clk 0:01:09]} 36. Kf2 {[%clk 0:00:13.8]} 36...
Rf3+ {[%clk 0:01:08.5]} 37. Kg2 {[%clk 0:00:13.5]} 37... Ne3+ {[%clk 0:01:08.5]}
38. Kh2 {[%clk 0:00:12.9]} 38... Nxf5 {[%clk 0:01:08.5]} 39. Nxf5 {[%clk
0:00:12.1]} 39... Rxf5 {[%clk 0:01:09.4]} 40. Kg3 {[%clk 0:00:10.9]} 40... Ra5
{[%clk 0:01:06.8]} 41. Kxg4 {[%clk 0:00:10.6]} 41... b5 {[%clk 0:01:07.2]} 42.
Kf4 {[%clk 0:00:08.5]} 42... Rxa4+ {[%clk 0:01:07.3]} 43. Rxa4 {[%clk
0:00:07.6]} 43... bxa4 {[%clk 0:01:08.2]} 0-1

[Event "*** Titled Tuesday Blitz"]
[Site "Chess.com"]
[Date "2020.10.20"]
[Round "1"]
[White "Evachess2006"]
[Black "ChainsOfFantasia"]
[Result "0-1"]
[WhiteElo "1638"]
[BlackElo "2456"]
[TimeControl "180+1"]
[EndTime "10:06:37 PDT"]
[Termination "ChainsOfFantasia won on time"]

1. e4 {[%clk 0:02:57.8]} 1... c5 {[%clk 0:02:58.1]} 2. c3 {[%clk 0:02:50.5]}
2... Nf6 {[%clk 0:02:56.6]} 3. e5 {[%clk 0:02:32.6]} 3... Nd5 {[%clk 0:02:41.9]}
4. d4 {[%clk 0:02:27.6]} 4... cxd4 {[%clk 0:02:42.8]} 5. Nf3 {[%clk 0:02:22]}
5... d6 {[%clk 0:02:34.6]} 6. exd6 {[%clk 0:02:16.7]} 6... Qxd6 {[%clk
0:02:18.8]} 7. cxd4 {[%clk 0:02:16.2]} 7... Nc6 {[%clk 0:02:10]} 8. Be2 {[%clk
0:01:54.4]} 8... Bf5 {[%clk 0:02:05.4]} 9. Nc3 {[%clk 0:01:36.5]} 9... e6 {[%clk
0:01:58.3]} 10. Bg5 {[%clk 0:01:27.9]} 10... h6 {[%clk 0:01:55.1]} 11. Bh4
{[%clk 0:01:03.9]} 11... Rc8 {[%clk 0:01:23.8]} 12. Bg3 {[%clk 0:01:01.1]} 12...
Qb4 {[%clk 0:01:22.6]} 13. Qd2 {[%clk 0:00:53.6]} 13... Na5 {[%clk 0:01:02.6]}
14. Rc1 {[%clk 0:00:43.7]} 14... Nc4 {[%clk 0:00:53.6]} 15. Bxc4 {[%clk
0:00:31.4]} 15... Rxc4 {[%clk 0:00:54.5]} 16. O-O {[%clk 0:00:27.5]} 16... Nxc3
{[%clk 0:00:43.6]} 17. Rxc3 {[%clk 0:00:22.1]} 17... Rxc3 {[%clk 0:00:36.5]} 18.
bxc3 {[%clk 0:00:16.4]} 18... Qb5 {[%clk 0:00:29.6]} 19. Rc1 {[%clk 0:00:15.8]}
19... Be7 {[%clk 0:00:28.1]} 20. c4 {[%clk 0:00:14]} 20... Qa4 {[%clk
0:00:27.2]} 21. Qc3 {[%clk 0:00:12.6]} 21... O-O {[%clk 0:00:26.2]} 22. Qb2
{[%clk 0:00:11.4]} 22... Ba3 {[%clk 0:00:22.7]} 0-1